[Event "IM Marmaris Karia VI 2019"]
[Site "Marmaris"]
[Date "2019.04.25"]
[Round "6.1"]
[White "Morozov, Nichita"]
[Black "Suleymanli, Aydin"]
[Result "0-1"]
[ECO "C13"]
[WhiteElo "2398"]
[BlackElo "2334"]
[Annotator "NA RC"]
[PlyCount "66"]
[EventDate "2019.04.24"]
[EventType "schev"]
[EventCountry "TUR"]
[SourceTitle "playchess.com"]
[Source "ChessBase"]
[SourceQuality "1"]
[TimeControl "5400+30"]

{[%evp 8,58,37,10,0,10,32,14,14,32767,32767,32767,32767,47,27,20,39,9,48,33,33,47,42,0,12,-24,-31,-29,-34,-31,-16,-10,-9,-20,32767,32767,32767,32767,32767,-16,0,-20,0,-71,-37,-92,-65,-185,-231,-153,-185,-189,-202]} 1. d4 {[%emt 0:00:30]} Nf6 {[%emt 0:00:30]} 2. Nc3 {[%emt 0:01:30]} e6 {[%emt 0:00:00]} 3. e4 {[%emt 0:00:00]} d5 {[%emt 0:00:00]} 4. Bg5 {[%emt 0:00:00]} dxe4 {[%emt 0:01:30]} 5. Nxe4 {[%emt 0:00:30]} Be7 {[%emt 0:00:00]} 6. Bxf6 {[%emt 0:00:00]} gxf6 {[%emt 0:00:00]} 7. Nf3 {[%emt 0:00:00]} a6 {[%emt 0:00:30]} 8. Bc4 {[%emt 0:01:30] C13: French: Classical System: 4 Bg5 Be7, Alekhine-Chatard Attack} (8. Qd2 f5 9. Nc3 b5 10. O-O-O b4 11. Ne2 Bb7 12. Kb1 Qd6 13. Ne5 Bd5 14. Qe1 Nd7 15. Nf4 c6 16. Bd3 {0-1 (56) Naiditsch,A (2682)-Harikrishna,P (2737) Douglas 2015}) 8... b5 {[%emt 0:00:30]} 9. Bb3 {[%emt 0:00:00]} Bb7 {[%emt 0:00:30]} 10. Qe2 $1 {[%emt 0:00:00]} Nd7 {[%emt 0:00:30]} 11. d5 $146 {[%emt 0:01:30]} ({Predecessor:} 11. a4 f5 12. Ned2 bxa4 13. Bxa4 O-O 14. O-O c5 15. Rfd1 cxd4 16. Nxd4 {½-½ (28) Pilavov,G (2567)-Pushkov,N (2513) Lugansk 2007}) 11... exd5 {[%emt 0:12:30]} 12. Ng3 {[%emt 0:01:30]} Nc5 {[%emt 0:02:30]} 13. O-O-O {[%emt 0:00:30]} Qd7 {[%emt 0:02:30]} 14. Rhe1 {[%emt 0:00:30]} Ne6 {[%emt 0:01:30]} 15. Nd4 {[%emt 0:01:30]} O-O-O {[%emt 0:05:30]} 16. Ngf5 {[%emt 0:02:30]} Bb4 {[%emt 0:01:30]} 17. c3 {[%emt 0:00:30]} Nxd4 {[%emt 0:00:30]} 18. Nxd4 {[%emt 0:00:00]} Ba5 {[%emt 0:03:30]} 19. Bc2 {[%emt 0:00:00]} Kb8 {[%emt 0:00:00]} 20. Qf3 {[%emt 0:01:30]} c5 {[%emt 0:04:00]} 21. Nb3 {[%emt 0:00:30]} Bb6 {[%emt 0:00:30]} 22. Qxf6 {[%emt 0:00:30]} Qd6 {[%emt 0:00:00]} 23. Qxf7 {[%emt 0:00:30]} Rhf8 {[%emt 0:00:00]} 24. Qxh7 {[%emt 0:01:30]} Rxf2 {[%emt 0:00:30]} 25. Qh3 {[%emt 0:01:30]} (25. g3 $11) 25... d4 {[%emt 0:03:30]} 26. cxd4 {[%emt 0:00:30]} cxd4 {[%emt 0:01:30]} 27. Rd2 {[%emt 0:01:30] [#]} (27. Bd3 $17 {was necessary.}) 27... Rxd2 $1 {[%emt 0:00:30]} 28. Nxd2 {[%emt 0:00:30]} d3 {[%emt 0:05:30]} 29. Bb3 {[%emt 0:00:30]} Bc7 $19 {[%emt 0:01:30]} 30. g4 {[%emt 0:01:30]} Qb4 {[%emt 0:00:30]} 31. a3 {[%emt 0:00:30]} Qf4 {[%emt 0:03:30]} 32. Rd1 {[%emt 0:00:30]} Be5 {[%emt 0:00:30]} 33. Kb1 {[%emt 0:00:30]} Qd4 {[%emt 0:00:30]} 0-1

[Event "IM Marmaris Karia VI 2019"]
[Site "Marmaris"]
[Date "2019.04.25"]
[Round "7.4"]
[White "Arda, Cagil Irmak"]
[Black "Darban, Morteza"]
[Result "0-1"]
[ECO "B03"]
[WhiteElo "2070"]
[BlackElo "2307"]
[Annotator "NA RC"]
[PlyCount "116"]
[EventDate "2019.04.24"]
[EventType "schev"]
[EventCountry "TUR"]
[SourceTitle "playchess.com"]
[Source "ChessBase"]
[SourceQuality "1"]
[TimeControl "5400+30"]

{[%evp 9,112,37,32767,32767,32767,32767,32767,32767,32767,32767,32767,32767,32767,32767,32767,32767,32767,63,57,31,55,32767,32767,36,32767,12,16,12,32767,-16,32767,-13,0,-16,32767,32767,32767,32767,32767,32767,32767,32767,32767,32767,-132,-140,-123,-341,-143,-157,-163,32767,32767,-344,-363,-667,-631,32767,32767,32767,32767,-466,-541,-823,32767,32767,-543,-562,-485,-400,32767,32767,-842,32767,32767,-397,-310,-301,-372,-370,-278,-323,-377,32767,-439,-587,-697,-670,-1130,-786,-467,32767,32767,-432,-505,-480,-511,32767,32767,32767,32767,-691,-840,-880,-1151]} 1. e4 {[%emt 0:00:30]} Nf6 {[%emt 0:26:30]} 2. e5 {[%emt 0:00:00]} Nd5 {[%emt 0:00:30]} 3. d4 {[%emt 0:00:00]} d6 {[%emt 0:00:00]} 4. c4 {[%emt 0:00:30]} Nb6 {[%emt 0:00:00]} 5. exd6 {[%emt 0:00:30]} cxd6 {[%emt 0:00:30]} 6. Nc3 {[%emt 0:00:30]} g6 {[%emt 0:00:30]} 7. Be3 {[%emt 0:00:30]} Bg7 {[%emt 0:00:30]} 8. Rc1 {[%emt 0:00:30]} O-O {[%emt 0:00:30]} 9. b3 {[%emt 0:00:30]} e6 {[%emt 0:00:30] B03: Alekhine's Defence: Four Pawns Attack} (9... Bf5 10. Be2 d5 11. c5 Nc8 12. Bf3 e6 13. g4 Be4 14. Nxe4 dxe4 15. Bxe4 Nc6 16. Ne2 N8e7 17. O-O Qd7 {1-0 (34) Corrales Jimenez,F (2559)-Zhao,J (2610) chess.com INT 2019}) 10. Nf3 {[%emt 0:00:30]} Nc6 {[%emt 0:00:30]} 11. Be2 {[%emt 0:00:30]} Ne7 {[%emt 0:00:30]} 12. O-O {[%emt 0:00:30]} Bd7 {[%emt 0:00:00]} 13. Bf4 $146 {[%emt 0:05:30]} ({Predecessor:} 13. Qd2 Nf5 14. Bg5 f6 15. Be3 Nxe3 16. Qxe3 e5 17. dxe5 dxe5 {1-0 (35) Jorczik,J (2170)-Nuber,B (2041) Willingen 2006}) 13... Bc6 {[%emt 0:00:00]} 14. Qd2 {[%emt 0:04:30]} Bxf3 {[%emt 0:28:30]} 15. Bxf3 {[%emt 0:00:30]} d5 {[%emt 0:00:30]} 16. c5 {[%emt 0:02:30]} Nbc8 {[%emt 0:00:00]} 17. Bh6 {[%emt 0:09:30]} Nc6 {[%emt 0:04:00]} 18. Bxg7 {[%emt 0:03:30]} Kxg7 {[%emt 0:00:30]} 19. Qf4 {[%emt 0:01:30]} a6 {[%emt 0:02:30]} 20. Rfd1 {[%emt 0:01:30]} h6 {[%emt 0:10:30]} 21. h4 {[%emt 0:04:30]} N8e7 {[%emt 0:04:18]} 22. g4 {[%emt 0:02:30]} Qd7 {[%emt 0:07:16]} 23. Ne2 {[%emt 0:02:30]} f6 {[%emt 0:03:01]} 24. Qe3 {[%emt 0:03:30]} e5 {[%emt 0:00:39]} 25. g5 {[%emt 0:04:30]} Nf5 {[%emt 0:04:17]} 26. gxh6+ {[%emt 0:01:30]} Kh7 {[%emt 0:00:11]} 27. Qc3 {[%emt 0:01:30]} Nfxd4 {[%emt 0:04:06]} ({Black should play} 27... Nxh4 $19 28. dxe5 fxe5 29. Bxd5 Qg4+ 30. Qg3 Qxe2 31. Qxh4 Rf4) 28. Ng3 $2 {[%emt 0:04:30]} (28. Nxd4 $17 Nxd4 29. Rxd4 exd4 30. Qxd4) 28... Nxf3+ {[%emt 0:00:35]} (28... Rad8 $19 {and Black stays clearly on top.} 29. Kg2 f5) 29. Qxf3 {[%emt 0:00:30]} Nd4 {[%emt 0:00:56]} 30. Qe3 {[%emt 0:00:30]} Rae8 {[%emt 0:01:54]} 31. Kg2 {[%emt 0:03:30]} (31. Rxd4 {is the only way for White.} exd4 32. Qxd4) 31... Qg4 {[%emt 0:00:30]} 32. Rh1 $2 {[%emt 0:06:30]} (32. c6 bxc6 33. f3 Qxh4 34. Rh1) 32... f5 {[%emt 0:00:05]} 33. Qg5 {[%emt 0:06:30]} Qxg5 {[%emt 0:00:05]} 34. hxg5 {[%emt 0:00:00]} f4 {[%emt 0:00:05]} 35. Nf1 {[%emt 0:01:00]} Rf5 {[%emt 0:00:04]} 36. f3 {[%emt 0:01:30]} Rxg5+ {[%emt 0:00:33]} 37. Kf2 {[%emt 0:00:00]} Rh5 {[%emt 0:00:52]} 38. Nh2 {[%emt 0:00:00]} Kxh6 {[%emt 0:00:29]} 39. Ng4+ {[%emt 0:00:30]} Kg7 {[%emt 0:00:26]} 40. Rhe1 {[%emt 0:00:30]} e4 {[%emt 0:01:46]} 41. fxe4 {[%emt 0:00:30]} Rxe4 {[%emt 0:00:40]} 42. Rcd1 {[%emt 0:00:30]} Rxe1 {[%emt 0:00:22]} 43. Rxe1 {[%emt 0:00:00]} Nc6 {[%emt 0:00:47]} 44. Kf3 {[%emt 0:01:00]} Rf5 {[%emt 0:00:28]} 45. Re8 {[%emt 0:00:30]} g5 {[%emt 0:00:01]} 46. Rc8 {[%emt 0:01:30]} Rf7 {[%emt 0:00:48]} 47. Re8 {[%emt 0:00:30]} (47. Nf2 {was necessary.}) 47... Re7 {[%emt 0:00:33]} 48. Rc8 {[%emt 0:00:30]} d4 {[%emt 0:00:32]} 49. Nf2 {[%emt 0:00:30]} Ne5+ {[%emt 0:00:02]} 50. Kg2 {[%emt 0:00:30]} Rd7 {[%emt 0:01:07]} 51. Re8 {[%emt 0:00:30]} Ng6 {[%emt 0:00:25]} 52. Re1 {[%emt 0:00:30]} Rd5 {[%emt 0:00:35]} 53. Nd3 {[%emt 0:00:30]} Kf6 {[%emt 0:00:18]} 54. b4 {[%emt 0:02:30]} Kf5 {[%emt 0:00:39]} 55. a4 {[%emt 0:00:30]} Ne5 {[%emt 0:00:13]} 56. Nxe5 {[%emt 0:02:30]} Rxe5 $19 {[%emt 0:00:03]} 57. Rxe5+ {[%emt 0:01:30]} Kxe5 {[%emt 0:00:02]} 58. b5 {[%emt 0:00:00]} a5 {[%emt 0:00:06]} 0-1

[Event "IM Marmaris Karia VI 2019"]
[Site "Marmaris"]
[Date "2019.04.25"]
[Round "8.1"]
[White "Simantsev, Mikhail"]
[Black "Suleymanli, Aydin"]
[Result "1/2-1/2"]
[ECO "D14"]
[WhiteElo "2395"]
[BlackElo "2334"]
[Annotator "NA"]
[PlyCount "38"]
[EventDate "2019.04.24"]
[EventType "schev"]
[EventCountry "TUR"]
[SourceTitle "playchess.com"]
[Source "ChessBase"]
[SourceQuality "1"]
[TimeControl "5400+30"]

1. d4 {[%emt 0:02:30]} d5 {[%emt 0:00:30]} 2. c4 {[%emt 0:00:30]} c6 {[%emt 0:00:00]} 3. cxd5 {[%emt 0:00:00]} cxd5 {[%emt 0:00:00]} 4. Nc3 {[%emt 0:00:00]} Nf6 {[%emt 0:00:00]} 5. Nf3 {[%emt 0:00:00]} Nc6 {[%emt 0:00:00]} 6. Bf4 {[%emt 0:00:00]} Bf5 {[%emt 0:00:30]} 7. e3 {[%emt 0:00:30]} e6 {[%emt 0:00:00]} 8. Bd3 {[%emt 0:00:00]} Bxd3 {[%emt 0:00:00]} 9. Qxd3 {[%emt 0:00:00]} Bd6 {[%emt 0:00:00]} 10. Bxd6 {[%emt 0:00:00]} Qxd6 {[%emt 0:00:00]} 11. O-O {[%emt 0:00:00]} O-O {[%emt 0:00:00]} 12. Rac1 {[%emt 0:00:00]} Rac8 {[%emt 0:00:00]} 13. h3 {[%emt 0:00:00]} h6 {[%emt 0:00:30]} 14. Rfd1 {[%emt 0:00:30]} Rfd8 {[%emt 0:00:00]} 15. Nb5 {[%emt 0:00:30]} Qe7 {[%emt 0:00:00]} 16. Nc3 {[%emt 0:00:00]} Qd6 {[%emt 0:00:30]} 17. Nb5 {[%emt 0:00:00]} Qe7 {[%emt 0:00:30]} 18. Nc3 {[%emt 0:00:30]} Qd6 {[%emt 0:00:00]} 19. Nb5 {[%emt 0:00:00]} Qe7 {[%emt 0:00:00]} 1/2-1/2

[Event "IM Marmaris Karia VI 2019"]
[Site "Marmaris"]
[Date "2019.04.25"]
[Round "8.2"]
[White "Guseynov, Alihan"]
[Black "Mammadova, Narmin"]
[Result "1/2-1/2"]
[ECO "D13"]
[WhiteElo "2340"]
[BlackElo "2292"]
[Annotator "ChessBase"]
[PlyCount "60"]
[EventDate "2019.04.24"]
[EventType "schev"]
[EventCountry "TUR"]
[SourceTitle "playchess.com"]
[Source "ChessBase"]
[SourceQuality "1"]
[TimeControl "5400+30"]

1. d4 {[%emt 0:10:30]} d5 {[%emt 0:00:30]} 2. c4 {[%emt 0:00:30]} c6 {[%emt 0:00:00]} 3. cxd5 {[%emt 0:00:00]} cxd5 {[%emt 0:00:00]} 4. Nf3 {[%emt 0:00:00]} Nc6 {[%emt 0:00:30]} 5. Nc3 {[%emt 0:00:30]} Nf6 {[%emt 0:00:00]} 6. Bf4 {[%emt 0:00:00]} e6 {[%emt 0:01:00]} 7. e3 {[%emt 0:00:00]} Bd6 {[%emt 0:00:30]} 8. Bxd6 {[%emt 0:01:30]} Qxd6 {[%emt 0:00:00]} 9. Bd3 {[%emt 0:00:30]} O-O {[%emt 0:00:00]} 10. O-O {[%emt 0:00:00]} e5 {[%emt 0:01:30]} 11. Nxe5 {[%emt 0:00:00]} Nxe5 {[%emt 0:00:00]} 12. dxe5 {[%emt 0:00:30]} Qxe5 {[%emt 0:00:00]} 13. h3 {[%emt 0:01:30]} Rd8 {[%emt 0:00:30]} 14. Qf3 {[%emt 0:00:30]} Be6 {[%emt 0:03:30]} 15. Rfd1 {[%emt 0:02:30]} Rac8 {[%emt 0:00:30]} 16. Rac1 {[%emt 0:00:30]} h6 {[%emt 0:01:30]} 17. a3 {[%emt 0:00:30]} b6 {[%emt 0:00:30]} 18. Rc2 {[%emt 0:00:30]} d4 {[%emt 0:00:30]} 19. exd4 {[%emt 0:00:30]} Rxd4 {[%emt 0:06:30]} 20. Qe2 {[%emt 0:06:30]} Qxe2 {[%emt 0:01:30]} 21. Nxe2 {[%emt 0:00:30]} Rxc2 {[%emt 0:00:30]} 22. Bxc2 {[%emt 0:00:30]} Rxd1+ {[%emt 0:00:30]} 23. Bxd1 {[%emt 0:00:00]} Kf8 {[%emt 0:00:00]} 24. Nd4 {[%emt 0:01:00]} Bd7 {[%emt 0:00:00]} 25. Kf1 {[%emt 0:00:30]} Ke7 {[%emt 0:00:30]} 26. Bb3 {[%emt 0:00:30]} Ne4 {[%emt 0:00:30]} 27. Ke2 {[%emt 0:00:30]} Nc5 {[%emt 0:00:30]} 28. Bc2 {[%emt 0:00:00]} Ne6 {[%emt 0:00:30]} 29. Nxe6 {[%emt 0:00:00]} Bxe6 {[%emt 0:00:00]} 30. Ke3 {[%emt 0:00:30]} Kd6 {[%emt 0:00:00]} 1/2-1/2

[Event "IM Marmaris Karia VI 2019"]
[Site "Marmaris"]
[Date "2019.04.25"]
[Round "8.3"]
[White "Darban, Morteza"]
[Black "Atakishiyev, Elmar"]
[Result "1/2-1/2"]
[ECO "A12"]
[WhiteElo "2307"]
[BlackElo "2114"]
[Annotator "ChessBase"]
[PlyCount "60"]
[EventDate "2019.04.24"]
[EventType "schev"]
[EventCountry "TUR"]
[SourceTitle "playchess.com"]
[Source "ChessBase"]
[SourceQuality "1"]
[TimeControl "5400+30"]

1. Nf3 {[%emt 0:00:30]} d5 {[%emt 0:00:30]} 2. g3 {[%emt 0:00:30]} Nf6 {[%emt 0:00:30]} 3. Bg2 {[%emt 0:00:30]} Bf5 {[%emt 0:00:00]} 4. O-O {[%emt 0:00:30]} e6 {[%emt 0:00:00]} 5. b3 {[%emt 0:00:30]} Be7 {[%emt 0:00:00]} 6. Bb2 {[%emt 0:00:00]} O-O {[%emt 0:00:00]} 7. c4 {[%emt 0:00:00]} c6 {[%emt 0:00:30]} 8. d3 {[%emt 0:00:30]} h6 {[%emt 0:00:00]} 9. Nbd2 {[%emt 0:00:30]} Nbd7 {[%emt 0:00:00]} 10. Rc1 {[%emt 0:00:30]} a5 {[%emt 0:00:00]} 11. a3 {[%emt 0:00:00]} Bh7 {[%emt 0:00:00]} 12. Rc2 {[%emt 0:00:00]} Rc8 {[%emt 0:01:30]} 13. Qa1 {[%emt 0:00:00]} Qb6 {[%emt 0:00:30]} 14. cxd5 {[%emt 0:01:00]} cxd5 {[%emt 0:00:30]} 15. Rxc8 {[%emt 0:00:00]} Rxc8 {[%emt 0:00:00]} 16. Rc1 {[%emt 0:00:00]} Rxc1+ {[%emt 0:00:00]} 17. Qxc1 {[%emt 0:00:00]} Qc5 {[%emt 0:00:30]} 18. Qxc5 {[%emt 0:00:00]} Nxc5 {[%emt 0:00:00]} 19. Ne5 {[%emt 0:00:30]} Nfd7 {[%emt 0:00:00]} 20. Nxd7 {[%emt 0:00:30]} Nxd7 {[%emt 0:00:30]} 21. Kf1 {[%emt 0:00:30]} Kf8 {[%emt 0:00:30]} 22. Ke1 {[%emt 0:00:00]} Bf6 {[%emt 0:00:30]} 23. Bxf6 {[%emt 0:00:00]} Nxf6 {[%emt 0:00:30]} 24. d4 {[%emt 0:00:30]} Bc2 {[%emt 0:00:00]} 25. e3 {[%emt 0:00:00]} Ke7 {[%emt 0:00:00]} 26. Bf3 {[%emt 0:00:00]} Kd6 {[%emt 0:00:30]} 27. h3 {[%emt 0:00:30]} Nd7 {[%emt 0:00:00]} 28. Bd1 {[%emt 0:00:30]} Bd3 {[%emt 0:00:00]} 29. Be2 {[%emt 0:00:00]} Bc2 {[%emt 0:00:30]} 30. Bd1 {[%emt 0:00:00]} Bd3 {[%emt 0:00:00]} 1/2-1/2

[Event "IM Marmaris Karia VI 2019"]
[Site "Marmaris"]
[Date "2019.04.25"]
[Round "8.4"]
[White "Morozov, Nichita"]
[Black "Arda, Cagil Irmak"]
[Result "1/2-1/2"]
[ECO "E17"]
[WhiteElo "2398"]
[BlackElo "2070"]
[Annotator "NA"]
[PlyCount "111"]
[EventDate "2019.04.24"]
[EventType "schev"]
[EventCountry "TUR"]
[SourceTitle "playchess.com"]
[Source "ChessBase"]
[SourceQuality "1"]
[TimeControl "5400+30"]

1. d4 {[%emt 0:00:30]} Nf6 {[%emt 0:00:30]} 2. c4 {[%emt 0:00:00]} e6 {[%emt 0:00:00]} 3. g3 {[%emt 0:00:00]} Be7 {[%emt 0:00:00]} 4. Nf3 {[%emt 0:00:00]} b6 {[%emt 0:00:30]} 5. Bg2 {[%emt 0:00:00]} Bb7 {[%emt 0:00:00]} 6. O-O {[%emt 0:00:00]} O-O {[%emt 0:00:00]} 7. d5 {[%emt 0:00:00]} exd5 {[%emt 0:01:30]} 8. Nh4 {[%emt 0:00:30]} Ne4 {[%emt 0:04:30]} 9. cxd5 {[%emt 0:00:30]} Bxh4 {[%emt 0:02:30] E17: Queen's Indian: 4 g3 Bb7 5 Bg2 Be7} 10. Bxe4 {[%emt 0:00:00]} Bf6 {[%emt 0:00:30]} 11. Qc2 {[%emt 0:01:00]} g6 {[%emt 0:00:30]} 12. Bg2 {[%emt 0:00:30]} d6 {[%emt 0:01:30]} 13. Nc3 {[%emt 0:00:30]} Nd7 {[%emt 0:01:30]} (13... Re8 14. Ne4 Bg7 15. Bg5 f6 16. Bd2 Nd7 17. Rac1 {½-½ (53) Donchenko,A (2610)-Khmelniker,I (2492) Douglas 2018}) 14. b3 $146 {[%emt 0:12:30]} ({Predecessor:} 14. Bd2 a5 15. a3 Ba6 16. Rfe1 Re8 17. Rac1 {1-0 (32) Szustakowski,A (2125)-Cirovic,M (1943) Prague 2016}) 14... a5 {[%emt 0:01:30]} 15. Bb2 {[%emt 0:05:30]} Bg7 {[%emt 0:05:30]} 16. a3 {[%emt 0:01:30]} f5 {[%emt 0:01:30]} 17. Nb5 {[%emt 0:02:30]} Bxb2 {[%emt 0:01:30]} 18. Qxb2 {[%emt 0:00:30]} Nf6 {[%emt 0:00:30]} 19. Rac1 {[%emt 0:00:30]} Rc8 {[%emt 0:02:30]} 20. Rfd1 {[%emt 0:00:30]} Qe7 {[%emt 0:03:30]} 21. e3 {[%emt 0:00:30]} Qf7 {[%emt 0:03:30]} 22. Qd4 {[%emt 0:08:30]} Ba6 {[%emt 0:02:30]} 23. Na7 {[%emt 0:02:30]} c5 {[%emt 0:03:30]} 24. dxc6 {[%emt 0:02:30]} Qxa7 {[%emt 0:00:30]} 25. Qxd6 {[%emt 0:00:00]} Qc7 {[%emt 0:02:30]} 26. Qe6+ {[%emt 0:00:00]} Qf7 {[%emt 0:00:30]} 27. Qe5 {[%emt 0:00:30]} Qc7 {[%emt 0:10:30]} 28. Qb2 {[%emt 0:00:30]} Rf7 {[%emt 0:03:30]} 29. b4 {[%emt 0:06:30]} axb4 {[%emt 0:00:30]} 30. axb4 {[%emt 0:00:30]} Bb5 {[%emt 0:00:30]} 31. h4 {[%emt 0:00:30]} Ne4 {[%emt 0:00:30]} 32. Qa2 {[%emt 0:00:30]} Qe7 {[%emt 0:00:30]} 33. Qd5 {[%emt 0:05:30]} Qxb4 {[%emt 0:23:30]} 34. Rb1 {[%emt 0:00:30]} Qc5 {[%emt 0:01:30]} 35. Qxc5 {[%emt 0:04:30]} bxc5 {[%emt 0:00:00]} 36. Rxb5 {[%emt 0:00:30]} Rxc6 {[%emt 0:07:06]} 37. Rc1 {[%emt 0:00:30]} c4 {[%emt 0:01:57]} 38. g4 {[%emt 0:01:30]} Rc8 $14 {[%emt 0:03:18]} 39. Bxe4 {[%emt 0:03:30]} fxe4 {[%emt 0:00:03]} 40. Rc3 {[%emt 0:00:30]} Rd7 {[%emt 0:02:03]} 41. Rb1 {[%emt 0:05:30]} Rd3 {[%emt 0:01:47]} 42. Rc2 {[%emt 0:00:00]} c3 {[%emt 0:01:44]} 43. Kf1 {[%emt 0:01:00]} Rc4 {[%emt 0:02:52]} 44. Ke2 {[%emt 0:05:30]} Rd7 {[%emt 0:00:30]} 45. Rb3 {[%emt 0:00:30]} Rdc7 {[%emt 0:01:04]} 46. Rb6 {[%emt 0:00:30]} Kf7 {[%emt 0:00:26]} 47. h5 {[%emt 0:00:30]} gxh5 {[%emt 0:01:22]} 48. gxh5 {[%emt 0:00:00]} R4c6 {[%emt 0:00:18]} 49. Rb8 {[%emt 0:01:00]} Rc8 {[%emt 0:02:09]} 50. Rb4 {[%emt 0:00:30]} Rc4 {[%emt 0:00:04]} 51. Rb1 {[%emt 0:00:00]} Kg7 {[%emt 0:00:24]} 52. f3 {[%emt 0:07:00]} exf3+ {[%emt 0:00:21]} 53. Kxf3 {[%emt 0:00:30]} Kh6 {[%emt 0:00:05]} 54. Rbc1 {[%emt 0:00:30]} R8c5 {[%emt 0:01:50]} 55. Ke2 {[%emt 0:00:30]} Kxh5 {[%emt 0:01:09]} 56. Kd3 {[%emt 0:00:30]} 1/2-1/2

[Event "IM Marmaris Karia VI 2019"]
[Site "Marmaris"]
[Date "2019.04.25"]
[Round "8.5"]
[White "Sibashvili, Giorgi"]
[Black "Kizilkus, Akin"]
[Result "1/2-1/2"]
[ECO "E73"]
[WhiteElo "2398"]
[BlackElo "2018"]
[Annotator "NA"]
[PlyCount "61"]
[EventDate "2019.04.24"]
[EventType "schev"]
[EventCountry "TUR"]
[SourceTitle "playchess.com"]
[Source "ChessBase"]
[SourceQuality "1"]
[TimeControl "5400+30"]

1. d4 {[%emt 0:07:30]} Nf6 {[%emt 0:00:30]} 2. c4 {[%emt 0:00:30]} g6 {[%emt 0:00:00]} 3. Nc3 {[%emt 0:00:30]} Bg7 {[%emt 0:00:00]} 4. e4 {[%emt 0:00:30]} d6 {[%emt 0:00:00]} 5. Be2 {[%emt 0:00:30]} O-O {[%emt 0:00:00]} 6. Bg5 {[%emt 0:00:30]} Na6 {[%emt 0:00:00]} 7. h4 {[%emt 0:09:30]} e5 {[%emt 0:00:00]} 8. d5 {[%emt 0:00:30]} h6 {[%emt 0:01:30]} 9. Be3 {[%emt 0:04:30]} Nc5 {[%emt 0:00:30]} 10. Qc2 {[%emt 0:02:30]} c6 {[%emt 0:00:30] E73: King's Indian: Averbakh Variation without 6...c5} 11. h5 {[%emt 0:01:30]} cxd5 {[%emt 0:00:30]} 12. cxd5 {[%emt 0:00:30]} Qa5 {[%emt 0:00:00]} 13. Kf1 {[%emt 0:09:30]} Bd7 {[%emt 0:03:00]} 14. hxg6 {[%emt 0:05:30]} fxg6 {[%emt 0:00:30]} 15. Bxh6 {[%emt 0:01:30]} ({Better is} 15. Nf3 $15) 15... Bxh6 {[%emt 0:01:30]} 16. Rxh6 {[%emt 0:00:30]} Kg7 {[%emt 0:00:30]} 17. Rh4 {[%emt 0:05:30] [#]} g5 $146 {[%emt 0:13:30]} ({Predecessor:} 17... b5 18. b4 Qxb4 {1-0 (41) Raetsky,A (2450)-Golubev,M (2545) Luzern 1994}) 18. Rh1 {[%emt 0:02:30]} g4 {[%emt 0:00:30]} 19. f3 {[%emt 0:09:30]} b5 {[%emt 0:05:30]} 20. Qd2 {[%emt 0:03:30]} b4 {[%emt 0:02:30]} 21. Qg5+ {[%emt 0:07:30]} Kf7 {[%emt 0:00:30]} 22. Rh6 {[%emt 0:00:30]} Ke7 {[%emt 0:00:30]} 23. Nd1 {[%emt 0:00:30]} Nb3 {[%emt 0:00:30]} 24. axb3 {[%emt 0:00:30]} Qxa1 {[%emt 0:00:30]} 25. Ke1 {[%emt 0:19:09] [#]} Qb1 $11 {[%emt 0:14:30]} (25... Rac8 $1 $17 26. Bd3 gxf3 27. Nxf3 Qc1 28. Qxc1 Rxc1) 26. Bc4 {[%emt 0:05:37]} Rf7 {[%emt 0:01:30]} 27. Rxf6 {[%emt 0:01:18]} Rxf6 {[%emt 0:00:30]} 28. Qg7+ {[%emt 0:00:01]} Rf7 {[%emt 0:00:30]} 29. Qg5+ {[%emt 0:00:02]} Rf6 {[%emt 0:03:30]} 30. Qg7+ {[%emt 0:00:01]} Rf7 {[%emt 0:00:00]} 31. Qg5+ {[%emt 0:00:23]} 1/2-1/2

[Event "IM Marmaris Karia VI 2019"]
[Site "Marmaris"]
[Date "2019.04.25"]
[Round "9.2"]
[White "Mammadova, Narmin"]
[Black "Darban, Morteza"]
[Result "1-0"]
[ECO "A07"]
[WhiteElo "2292"]
[BlackElo "2307"]
[Annotator "NA"]
[PlyCount "53"]
[EventDate "2019.04.24"]
[EventType "schev"]
[EventCountry "TUR"]
[SourceTitle "playchess.com"]
[Source "ChessBase"]
[SourceQuality "1"]
[TimeControl "5400+30"]

{[%evp 8,37,16,17,40,32767,32767,32767,32767,32767,58,44,49,49,41,53,33,17,114,139,139,107,135,137,200,123,140,120,118,106,110,117]} 1. e4 {[%emt 0:00:30]} c6 {[%emt 0:08:30]} 2. d3 {[%emt 0:00:30]} g6 {[%emt 0:00:30]} 3. g3 {[%emt 0:01:30]} Bg7 {[%emt 0:00:30]} 4. Bg2 {[%emt 0:00:30]} d5 {[%emt 0:00:30]} 5. Nd2 {[%emt 0:00:30]} Nf6 {[%emt 0:01:30]} 6. Ngf3 {[%emt 0:01:30]} O-O {[%emt 0:00:30]} 7. O-O {[%emt 0:00:30]} dxe4 {[%emt 0:00:30]} 8. dxe4 {[%emt 0:00:00]} Nbd7 {[%emt 0:00:30]} 9. Qe2 {[%emt 0:02:00]} a5 {[%emt 0:04:30] A07: Réti Opening: New York and Capablanca Systems} (9... e5 10. Nc4 Qc7 11. Rd1 Ne8 12. a4 Nb6 13. Na5 f6 14. Be3 Be6 15. Nd2 Rf7 16. Nab3 Nd7 17. h4 f5 18. f4 Nef6 19. fxe5 Nxe5 {½-½ (83) Lind,J (2244)-Al Hadarani,H (2285) Lidkoping 2017}) 10. Rd1 {[%emt 0:00:30]} Qc7 {[%emt 0:02:30]} 11. a4 {[%emt 0:23:30]} e5 $146 {[%emt 0:07:30]} ({Predecessor:} 11... Nc5 12. Nc4 Nfd7 13. Bf4 e5 14. Bg5 f6 15. Bc1 b6 16. Nfd2 Ba6 17. b3 {0-1 (30) Lombard,A-Lewi,J Athens 1969}) 12. b3 {[%emt 0:02:30]} Ne8 {[%emt 0:09:30]} (12... b5 $11 {keeps the balance.}) 13. Ba3 {[%emt 0:05:30]} c5 {[%emt 0:00:30]} 14. Nc4 {[%emt 0:00:30]} f6 {[%emt 0:08:30]} 15. Rd3 {[%emt 0:08:30]} b6 {[%emt 0:00:30]} (15... Rf7 $16) 16. Rad1 {[%emt 0:00:30]} (16. Bh3 $18) 16... Rf7 {[%emt 0:01:30]} 17. Bh3 {[%emt 0:08:30]} Nf8 {[%emt 0:03:30]} 18. Bxc8 {[%emt 0:00:30]} Rxc8 {[%emt 0:00:30]} 19. c3 $16 {[%emt 0:06:30]} Rd7 {[%emt 0:04:30]} 20. Rxd7 {[%emt 0:00:30]} Nxd7 {[%emt 0:00:30]} 21. Rxd7 {[%emt 0:00:30]} Qxd7 {[%emt 0:00:30]} 22. Nxb6 {[%emt 0:00:30]} Qe6 {[%emt 0:00:30]} 23. Nxc8 {[%emt 0:00:30]} Qxc8 {[%emt 0:00:30]} 24. Qc4+ {[%emt 0:00:30]} Kh8 {[%emt 0:00:30]} 25. Bxc5 {[%emt 0:00:30]} Qd7 {[%emt 0:00:30]} 26. Kg2 {[%emt 0:00:30]} h6 {[%emt 0:00:30]} 27. Qb5 {[%emt 0:02:30]} 1-0